bitfinex/quotes_SOLUSD_20251212
["timestamp","ask_amount","ask_price","bid_price","bid_amount"]
[1765506735968,7.28285332,137.31,137.28,0.68]
[1765506736170,7.97285332,137.31,137.28,8.80994492]
[1765506736372,0.69,137.3,137.28,8.80994492]
[1765506737577,7.2838517,137.29,137.26,5.13414527]
[1765506737956,7.2838517,137.29,137.26,0.68]
[1765506738251,7.2838517,137.29,137.26,5.13414527]
[1765506738450,0.71,137.28,137.26,8.80994492]
[1765506738757,7.9938517,137.29,137.26,8.80994492]
[1765506739177,7.9938517,137.29,137.26,9.49994492]
[1765506740079,7.99341288,137.3,137.26,13.95409019]
[1765506740276,7.99298573,137.31,137.28,8.80994492]
[1765506740582,0.71,137.3,137.28,8.80994492]
[1765506741198,0.57107207,137.3,137.28,8.80994492]
[1765506741776,7.2838517,137.29,137.24,0.69]
[1765506741962,7.2838517,137.29,137.26,8.80994492]
[1765506743316,7.9938517,137.29,137.26,8.80994492]
[1765506745395,7.28332119,137.3,137.27,0.69]
[1765506745598,7.99332119,137.3,137.26,13.95409019]
[1765506745884,7.99270249,137.32,137.28,13.95409019]
[1765506746383,7.28270249,137.32,137.28,13.95409019]
[1765506746689,7.99270249,137.32,137.28,13.95409019]
[1765506747069,7.28270249,137.32,137.28,13.95409019]
[1765506747265,7.99270249,137.32,137.28,13.95409019]
[1765506748366,0.71,137.31,137.28,13.95409019]
[1765506750281,7.28270249,137.32,137.29,0.69]
[1765506750489,0.71,137.32,137.3,8.80994492]
[1765506750682,43.68506708,137.34,137.31,4.45414527]
[1765506750683,7.99124578,137.34,137.31,4.45414527]
[1765506751079,7.99124578,137.34,137.31,5.14414527]
[1765506751279,0.71,137.33,137.29,7.98]
[1765506751482,0.71,137.33,137.29,8.80994492]
[1765506751693,7.28124578,137.34,137.3,13.95409019]
[1765506751891,7.99124578,137.34,137.3,13.95409019]
[1765506752068,0.71,137.33,137.3,13.95409019]
[1765506752389,7.99124578,137.34,137.31,4.45414527]
[1765506752593,7.28124578,137.34,137.3,21.23738884]
[1765506752770,7.99124578,137.34,137.3,21.23738884]
[1765506753991,7.99124578,137.34,137.3,13.95409019]
[1765506754178,0.71,137.33,137.3,13.95409019]
[1765506754894,0.71,137.33,137.3,8.80994492]
[1765506755870,7.99208206,137.33,137.3,8.80994492]
[1765506757397,7.28024814,137.36,137.33,4.45414527]
[1765506757692,7.99024814,137.36,137.33,5.14414527]
[1765506758700,0.71,137.35,137.32,16.09219649]
[1765506758875,0.71,137.35,137.32,21.23634176]
[1765506759694,7.99024814,137.36,137.32,21.23634176]
[1765506759899,7.99024814,137.36,137.32,19.63294438]
[1765506760075,0.71,137.36,137.32,19.63294438]
[1765506760482,0.71,137.36,137.33,2.85074789]
[1765506760675,7.99028541,137.36,137.33,2.85074789]
[1765506760875,2.85074789,137.35,137.29,0.69]
[1765506761104,2.85074789,137.34,137.29,13.0470912]
[1765506761274,0.71,137.33,137.29,13.0470912]
[1765506761598,3.56074789,137.33,137.29,13.0470912]
[1765506761971,0.71,137.32,137.29,13.0470912]
[1765506762168,7.99244909,137.32,137.29,13.0470912]
[1765506762372,7.99244909,137.32,137.29,13.7370912]
[1765506762695,7.99244909,137.32,137.29,8.80994492]
[1765506764491,7.99244909,137.32,137.29,9.50994492]
[1765506765901,7.28173013,137.33,137.3,9.50994492]
[1765506766197,7.99173013,137.33,137.3,8.80994492]
[1765506766404,0.71,137.32,137.3,8.80994492]
[1765506766699,0.71,137.32,137.28,8.80994492]
[1765506766700,2.85074789,137.31,137.28,8.80994492]
[1765506767186,0.71,137.3,137.28,8.80994492]
[1765506768790,10.84457841,137.3,137.25,21.0270912]
[1765506769101,10.84457841,137.3,137.26,8.80994492]
[1765506769398,0.71,137.29,137.26,8.80994492]
[1765506771089,7.99424144,137.29,137.26,8.80994492]
[1765506771603,2.85074789,137.27,137.24,8.80994492]
[1765506771794,2.85074789,137.26,137.23,0.2]
[1765506771985,0.71,137.25,137.23,0.2]
[1765506772581,0.71,137.27,137.23,12.56069281]
[1765506773106,7.28544368,137.26,137.23,12.56069281]
[1765506774278,7.28544368,137.26,137.23,11.86069281]
[1765506774484,7.28544368,137.26,137.24,0.7]
[1765506774680,7.99510305,137.27,137.24,0.7]
[1765506778988,10.84585094,137.27,137.24,0.7]
[1765506780114,7.99510305,137.27,137.24,0.7]
[1765506781407,0.71,137.26,137.23,16.99683205]
[1765506781711,10.84513017,137.28,137.24,0.7]
[1765506781895,0.71,137.27,137.24,0.7]
[1765506782992,7.99507815,137.27,137.24,0.7]
[1765506784318,102.7,137.3,137.25,11.66069281]
[1765506784700,103.41,137.3,137.26,0.7]
[1765506784901,0.71,137.29,137.26,0.7]
[1765506785288,7.28399373,137.29,137.26,3.55074789]
[1765506785490,109.98345383,137.3,137.27,8.80994492]
[1765506785686,110.69345383,137.3,137.27,9.50994492]
[1765506785897,0.71,137.31,137.28,0.7]
[1765506786891,7.99316775,137.31,137.27,11.66069281]
[1765506787097,7.99316775,137.31,137.27,9.50994492]
[1765506788723,0.71,137.3,137.27,9.50994492]
[1765506797012,7.28316775,137.31,137.27,8.80994492]
[1765506797208,7.98316775,137.31,137.28,0.68]
[1765506797408,0.7,137.3,137.27,8.80994492]
[1765506797604,2.85074789,137.28,137.23,16.97678321]
[1765506798015,0.71,137.27,137.25,8.80994492]
[1765506798416,3.56074789,137.27,137.23,0.87]
[1765506798736,3.56074789,137.27,137.23,9.00994492]
[1765506798931,0.71,137.26,137.23,9.00994492]
[1765506799114,7.99550023,137.26,137.23,9.00994492]
[1765506799502,0.71,137.25,137.23,9.00994492]
[1765506799704,0.71,137.25,137.23,0.2]
[1765506801225,7.99641164,137.25,137.23,0.2]
[1765506801919,0.71,137.24,137.23,0.2]
[1765506803018,7.28641164,137.25,137.23,0.2]
[1765506803206,7.99641164,137.25,137.23,0.2]
[1765506804731,7.28503098,137.27,137.24,3.52074789]
[1765506805112,7.99503098,137.27,137.24,3.52074789]
[1765506805309,7.28503098,137.27,137.24,9.47994492]
[1765506805510,7.99503098,137.27,137.24,9.47994492]
[1765506809735,7.99552432,137.26,137.24,8.80994492]
[1765506816933,7.99552432,137.26,137.23,0.87]
[1765506817654,7.28552432,137.26,137.24,8.80994492]
[1765506817857,0.71,137.25,137.24,8.80994492]
[1765506818039,7.99597449,137.25,137.23,0.2]
[1765506820531,13.0470912,137.27,137.23,0.2]
[1765506820730,7.28511519,137.27,137.24,21.92126459]
[1765506821155,7.28511519,137.27,137.26,8.80994492]
[1765506821658,0.71,137.27,137.24,7.98]
[1765506821843,0.71,137.26,137.24,7.98]
[1765506822046,0.71,137.26,137.23,9.00994492]
[1765506822250,5.17131967,137.26,137.23,9.00994492]
[1765506822453,5.17131967,137.26,137.23,0.2]
[1765506822766,5.17131967,137.25,137.23,0.2]
[1765506823273,0.7,137.24,137.23,0.2]
[1765506823759,7.98650539,137.24,137.23,0.2]
[1765506832152,12.44782506,137.24,137.23,0.2]
[1765506832339,7.98650539,137.24,137.23,0.2]
[1765506833262,7.28650539,137.24,137.23,0.2]
[1765506834161,13.0470912,137.27,137.23,5.34131967]
[1765506834343,7.28559297,137.26,137.23,0.88]
[1765506834660,7.98559297,137.26,137.23,9.00994492]
[1765506834863,0.7,137.25,137.23,9.00994492]
[1765506835735,7.28559297,137.26,137.23,9.00994492]
[1765506835936,7.98559297,137.26,137.23,9.68994492]
[1765506837467,0.7,137.25,137.23,9.00994492]
[1765506837759,5.16131967,137.25,137.23,0.2]
[1765506837963,4.46131967,137.24,137.23,0.2]
[1765506838149,5.16131967,137.24,137.23,0.2]
[1765506838345,12.44782506,137.24,137.23,0.2]
[1765506840375,7.98650539,137.24,137.23,0.2]
[1765506841665,7.28650539,137.24,137.23,0.88]
[1765506841869,102.7,137.26,137.23,9.68994492]
[1765506842061,102.7,137.26,137.24,0.68]
[1765506843372,109.98561994,137.26,137.24,0.68]
[1765506845470,110.68561994,137.26,137.23,9.00994492]
[1765506845644,0.7,137.25,137.23,9.00994492]
[1765506845849,0.7,137.25,137.23,0.2]
[1765506847567,7.28650539,137.24,137.23,0.2]
[1765506847963,7.98650539,137.24,137.23,0.2]
[1765506848552,7.28650539,137.24,137.23,0.2]
[1765506850267,7.98650539,137.24,137.23,0.2]
[1765506851175,7.28650539,137.24,137.23,0.2]
[1765506851845,7.28602939,137.25,137.23,0.88]
[1765506852261,7.28602939,137.25,137.24,0.68]
[1765506852771,7.28602939,137.25,137.23,0.2]
[1765506852969,7.28602939,137.25,137.23,0.9]
[1765506853351,7.28602939,137.25,137.23,0.2]
[1765506853557,7.28602939,137.25,137.23,0.9]
[1765506854679,102.7,137.26,137.24,0.7]
[1765506855052,102.7,137.26,137.24,5.16131967]
[1765506855777,102.7,137.26,137.25,0.7]
[1765506856588,102.7,137.26,137.25,9.50994492]
[1765506857294,36.41399819,137.31,137.25,9.50994492]
[1765506857295,0.69,137.32,137.26,8.80994492]
[1765506857457,21.01935161,137.32,137.28,8.80994492]
[1765506857779,7.97226041,137.32,137.28,8.80994492]
[1765506858082,0.69,137.31,137.28,9.50994492]
[1765506858455,7.97328521,137.31,137.28,9.50994492]
[1765506859462,0.67,137.3,137.28,8.80994492]
[1765506859862,0.67,137.3,137.27,7.98]
[1765506860066,5.13131967,137.3,137.27,7.98]
[1765506860266,0.67,137.29,137.27,7.98]
[1765506860482,7.28438228,137.28,137.27,7.98]
[1765506860984,7.28438228,137.28,137.26,8.80994492]
[1765506861770,7.2838517,137.29,137.26,8.80994492]
[1765506861969,0.67,137.28,137.26,8.80994492]
[1765506862673,7.9538517,137.29,137.26,8.80994492]
[1765506864481,7.2838517,137.29,137.26,8.80994492]
[1765506864682,0.67,137.28,137.26,8.80994492]
[1765506864987,0.67,137.28,137.23,0.88]
[1765506864988,3.8010553,137.37,137.27,5.14131967]
[1765506865162,102.7,137.33,137.3,4.46131967]
[1765506865592,102.7,137.33,137.3,5.14131967]
[1765506866166,109.98181118,137.33,137.3,5.14131967]
[1765506866371,109.98181118,137.33,137.31,0.68]
[1765506866787,109.98181118,137.33,137.31,5.14131967]
[1765506867289,109.98181118,137.33,137.27,12.44131967]
[1765506867290,0.67,137.36,137.32,13.95126459]
[1765506867488,0.67,137.36,137.33,4.46131967]
[1765506868169,7.95051232,137.36,137.33,4.46131967]
[1765506868588,0.67,137.35,137.33,4.46131967]
[1765506868968,0.67,137.35,137.32,13.95126459]
[1765506869685,7.95080006,137.35,137.32,13.95126459]
[1765506869986,12.41211973,137.35,137.3,4.46131967]
[1765506870286,0.67,137.34,137.3,4.46131967]
[1765506871071,5.13131967,137.34,137.29,7.98]
[1765506871278,4.46131967,137.33,137.29,7.98]
[1765506871488,0.67,137.32,137.29,7.98]
[1765506871789,7.95252116,137.32,137.29,7.98]
[1765506872282,0.67,137.32,137.3,4.46131967]
[1765506872483,15.93138661,137.34,137.31,4.46131967]
[1765506872869,0.67,137.33,137.31,4.46131967]
[1765506874567,7.28138661,137.34,137.31,4.46131967]
[1765506874767,7.95138661,137.34,137.31,5.14131967]
[1765506875080,7.95138661,137.34,137.31,4.46131967]
[1765506875587,7.95138661,137.34,137.31,5.14131967]
[1765506877090,7.95138661,137.34,137.31,0.68]
[1765506877276,7.95138661,137.34,137.31,8.80994492]
[1765506877587,7.95138661,137.34,137.31,9.48994492]
[1765506878287,7.95138661,137.34,137.3,4.46131967]
[1765506878288,0.67,137.33,137.3,8.80994492]
[1765506879696,7.95194947,137.33,137.3,8.80994492]
[1765506880499,0.67,137.32,137.3,8.80994492]
[1765506884893,7.99194947,137.33,137.3,8.80994492]
[1765506885300,0.71,137.32,137.3,8.80994492]
[1765506888602,7.99230417,137.32,137.3,8.80994492]
[1765506890392,0.71,137.32,137.3,8.80994492]
[1765506891495,0.71,137.32,137.29,7.98]
[1765506891675,7.99250681,137.32,137.29,8.80994492]
[1765506892005,7.99250681,137.32,137.29,9.46994492]
[1765506896389,0.71,137.31,137.29,8.80994492]
[1765506897196,0.71,137.31,137.29,9.46994492]
[1765506897402,7.99262665,137.32,137.29,9.46994492]
[1765506898293,7.99262665,137.32,137.29,0.66]
[1765506900397,7.99262665,137.32,137.29,9.46994492]
[1765506900600,7.28192815,137.33,137.3,12.34221341]
[1765506901116,7.28192815,137.33,137.31,0.68]
[1765506901615,7.28119994,137.34,137.31,0.68]
[1765506902120,7.98119994,137.34,137.31,0.68]
[1765506904599,0.7,137.33,137.31,0.68]
[1765506904795,0.7,137.33,137.3,9.48994492]
[1765506905195,0.7,137.33,137.3,8.80994492]
[1765506905911,0.7,137.33,137.3,9.48994492]
[1765506906101,7.28226041,137.32,137.3,9.48994492]
[1765506907409,7.28173013,137.33,137.3,9.48994492]
[1765506907611,0.7,137.32,137.3,9.48994492]
[1765506908216,0.7,137.32,137.29,0.68]
[1765506908449,0.7,137.32,137.29,9.48994492]
[1765506909118,0.7,137.32,137.29,8.80994492]
[1765506909308,7.98266443,137.32,137.29,8.80994492]
[1765506909516,0.7,137.31,137.29,8.80994492]
[1765506911409,7.98280447,137.31,137.29,8.80994492]
[1765506912431,0.7,137.32,137.29,9.48994492]
[1765506913215,0.7,137.32,137.29,12.34221341]
[1765506914398,7.98269014,137.32,137.29,12.34221341]
[1765506915902,0.7,137.31,137.29,8.80994492]
[1765506919717,7.9828514,137.31,137.29,8.80994492]
[1765506920108,7.9828514,137.31,137.29,9.51994492]
[1765506920428,7.2828514,137.31,137.29,9.51994492]
[1765506921002,0.67,137.31,137.29,9.51994492]
[1765506921414,7.28226041,137.32,137.29,9.51994492]
[1765506921616,7.95226041,137.32,137.29,12.37221341]
[1765506921802,7.2818368,137.33,137.3,12.37221341]
[1765506921998,7.95101406,137.35,137.3,12.37221341]
[1765506922235,7.95101406,137.35,137.31,0.71]
[1765506922419,0.67,137.34,137.31,0.71]
[1765506922915,7.95144144,137.34,137.31,0.71]
[1765506923930,7.28144144,137.34,137.3,8.80994492]
[1765506924112,7.28144144,137.34,137.3,0.71]
[1765506924113,0.67,137.33,137.3,0.71]
[1765506925036,7.28226041,137.32,137.3,0.71]
[1765506926345,0.67,137.31,137.29,8.80994492]
[1765506926549,0.67,137.32,137.29,9.51994492]
[1765506927348,7.95263824,137.32,137.29,9.51994492]
[1765506936939,25.48828927,137.32,137.29,8.80994492]
[1765506937151,3.52226849,137.31,137.26,8.80994492]
[1765506937620,0.67,137.3,137.26,9.51994492]
[1765506938122,0.67,137.3,137.27,0.71]
[1765506939146,7.95363336,137.3,137.27,0.71]
[1765506940033,7.28363336,137.3,137.27,0.71]
[1765506940246,0.67,137.29,137.27,0.71]
[1765506940747,7.28363336,137.3,137.27,0.71]
[1765506941045,7.95363336,137.3,137.27,0.71]
[1765506941626,7.95290388,137.31,137.28,8.80994492]
[1765506941832,7.95290388,137.31,137.28,11.66221341]
[1765506942030,7.95290388,137.31,137.28,13.97722354]
[1765506942234,7.95290388,137.31,137.28,13.26722354]
[1765506942438,7.28290388,137.31,137.29,0.71]
[1765506943151,0.69,137.31,137.29,0.71]
[1765506945548,7.97226041,137.32,137.29,5.16727862]
[1765506946843,0.69,137.31,137.28,21.24722354]
[1765506947045,0.69,137.31,137.28,17.47994492]
[1765506947239,0.69,137.31,137.28,21.93722354]
[1765506948044,7.97302584,137.31,137.28,16.78994492]
[1765506948224,7.97302584,137.31,137.28,8.80994492]
[1765506948431,0.69,137.3,137.28,8.80994492]
[1765506952852,7.97337292,137.3,137.28,8.80994492]
[1765506955760,7.28297857,137.31,137.28,8.80994492]
[1765506956052,0.69,137.3,137.28,8.80994492]
[1765506956268,0.69,137.3,137.28,9.49994492]
[1765506961950,7.97297857,137.31,137.28,9.49994492]
[1765506962147,7.28238729,137.32,137.29,0.69]
[1765506962349,7.97238729,137.32,137.29,0.69]
[1765506962766,7.28238729,137.32,137.29,0.69]
[1765506962955,0.69,137.31,137.29,0.69]
[1765506963561,7.97279207,137.31,137.28,8.80994492]
[1765506963874,7.97279207,137.31,137.28,9.49994492]
[1765506964075,0.69,137.3,137.28,9.49994492]
[1765506965976,0.69,137.31,137.28,9.49994492]
[1765506967394,0.69,137.31,137.29,0.69]
[1765506967750,0.69,137.31,137.28,8.80994492]
[1765506968071,4.45727862,137.3,137.27,8.80994492]
[1765506968575,0.69,137.29,137.27,8.80994492]
[1765506969079,7.97388378,137.29,137.27,8.80994492]
[1765506973772,0.68,137.29,137.27,8.80994492]
[1765506975378,12.42128676,137.29,137.25,7.98]
[1765506975580,12.42128676,137.29,137.25,8.80994492]
[1765506975893,0.66,137.28,137.25,8.80994492]
[1765506977087,7.94475562,137.28,137.25,8.80994492]
[1765506977289,0.66,137.27,137.25,9.46994492]
[1765506977892,0.66,137.27,137.25,8.80994492]
[1765506978390,0.66,137.27,137.25,9.46994492]
[1765506979677,7.94494608,137.27,137.25,8.80994492]
[1765506980389,7.94494608,137.27,137.24,0.66]
[1765506982709,0.66,137.26,137.24,0.66]
[1765506982907,0.66,137.26,137.24,8.80994492]
[1765506983206,0.66,137.26,137.24,9.46994492]
[1765506983762,7.94544911,137.26,137.24,9.46994492]
[1765506984174,7.94544911,137.26,137.24,8.80994492]
[1765506984378,0.66,137.25,137.24,8.80994492]
[1765506984776,7.94544911,137.26,137.24,8.80994492]
[1765506984985,7.28544911,137.26,137.24,8.80994492]
[1765506985298,0.66,137.25,137.24,8.80994492]
[1765506986176,7.94597449,137.25,137.23,8.18]
[1765506986376,7.94597449,137.25,137.23,16.98994492]
[1765506986583,7.94597449,137.25,137.23,0.2]
[1765506989094,0.66,137.24,137.23,0.2]
[1765506991109,25.49848698,137.27,137.23,0.86]
[1765506991407,7.94540864,137.27,137.24,9.46994492]
[1765506993898,7.28540864,137.27,137.25,0.66]
[1765506994688,7.94446578,137.28,137.25,0.66]
[1765506995094,110.64389098,137.29,137.26,8.80994492]
[1765506995296,0.66,137.28,137.26,8.80994492]
[1765506995499,0.66,137.28,137.26,9.46994492]
[1765506997387,7.28351386,137.3,137.27,5.11727862]
[1765506997702,0.66,137.31,137.28,8.80994492]
[1765506997885,0.66,137.31,137.28,9.46994492]
[1765506997886,7.94295805,137.31,137.28,9.46994492]
[1765506999013,7.28226213,137.32,137.29,0.66]
[1765506999182,7.28226213,137.32,137.29,5.11727862]
[1765506999505,110.64183753,137.33,137.3,5.11727862]
[1765506999902,110.64183753,137.33,137.31,0.66]
[1765507000213,110.64183753,137.33,137.3,5.11727862]
[1765507000595,110.64183753,137.33,137.3,0.66]
[1765507000798,110.64183753,137.33,137.3,5.11727862]
[1765507001022,102.7,137.33,137.31,0.66]
[1765507001307,0.66,137.35,137.32,8.80994492]
[1765507001512,0.66,137.34,137.32,8.80994492]
[1765507002005,0.66,137.35,137.32,9.46994492]
[1765507002206,0.66,137.35,137.3,8.64]
[1765507002424,5.11727862,137.35,137.31,8.80994492]
[1765507002630,7.28119994,137.34,137.31,8.80994492]
[1765507002830,7.94119994,137.34,137.31,8.80994492]
[1765507003001,0.66,137.33,137.31,8.80994492]
[1765507004204,0.66,137.33,137.31,9.49994492]
[1765507005110,7.94180703,137.33,137.31,8.80994492]
[1765507005312,0.66,137.33,137.31,8.80994492]
[1765507008037,0.66,137.33,137.3,11.52162173]
[1765507008038,7.94180541,137.33,137.28,15.26134988]
[1765507008237,7.94180541,137.33,137.28,10.82297161]
[1765507008416,0.66,137.32,137.28,3.54162173]
[1765507009651,7.28279076,137.31,137.28,0.69]
[1765507009876,7.28279076,137.31,137.27,12.35156665]
[1765507010145,0.66,137.3,137.27,12.35156665]
[1765507011453,7.9434507,137.3,137.27,12.35156665]
[1765507011829,7.2834507,137.3,137.28,0.69]
[1765507012429,7.94285967,137.31,137.28,3.54162173]
[1765507012636,7.94237191,137.32,137.29,8.80994492]
[1765507012838,0.66,137.31,137.29,8.80994492]
[1765507013238,0.66,137.31,137.29,11.66156665]
[1765507014323,0.66,137.32,137.29,12.35156665]
[1765507015646,13.0470912,137.33,137.3,3.54162173]
[1765507015840,7.94133774,137.34,137.31,8.80994492]
[1765507016053,7.94133774,137.34,137.31,9.49994492]
[1765507016243,0.66,137.33,137.31,9.49994492]
[1765507016552,7.94133774,137.34,137.31,9.49994492]
[1765507017143,0.66,137.33,137.31,9.49994492]
[1765507017439,0.66,137.33,137.31,8.80994492]
[1765507018022,7.28133774,137.34,137.31,9.49994492]
[1765507018349,0.66,137.33,137.31,9.49994492]
[1765507018844,0.66,137.33,137.31,8.80994492]
[1765507019849,7.94181558,137.33,137.28,15.26404594]
[1765507020053,7.94181558,137.33,137.29,8.80994492]
[1765507020255,0.66,137.32,137.29,8.80994492]
[1765507020637,7.94181558,137.33,137.3,0.69]
[1765507020956,0.66,137.33,137.31,8.80994492]
[1765507024644,7.28154448,137.34,137.31,9.49994492]
[1765507024952,0.66,137.34,137.31,19.63430318]
[1765507025640,0.66,137.34,137.31,16.78268145]
[1765507025830,0.66,137.34,137.31,19.63430318]
[1765507026332,0.66,137.34,137.31,16.78268145]
[1765507026542,0.66,137.34,137.31,19.63430318]
[1765507029134,0.66,137.34,137.31,16.78268145]
[1765507030868,7.94123285,137.34,137.31,9.49994492]
[1765507031276,0.66,137.33,137.3,8.80994492]
[1765507031567,3.51162173,137.33,137.29,8.80994492]
[1765507032068,7.28279076,137.31,137.29,8.80994492]
[1765507032254,10.13441249,137.31,137.28,8.80994492]
[1765507032456,0.66,137.3,137.28,8.80994492]
[1765507034565,7.94346837,137.3,137.28,8.80994492]
[1765507037858,0.7,137.29,137.27,7.98]
[1765507038042,0.7,137.29,137.27,8.80994492]
[1765507041672,10.83575981,137.29,137.25,7.98]
[1765507041849,7.98413808,137.29,137.25,7.98]
[1765507042174,7.28369533,137.3,137.26,16.78515292]
[1765507042474,7.98369533,137.3,137.26,19.63677465]
[1765507042670,0.7,137.29,137.26,16.78515292]
[1765507042871,0.7,137.29,137.26,19.63677465]
[1765507044775,0.7,137.29,137.26,16.78515292]
[1765507048481,0.7,137.29,137.26,9.49994492]
[1765507048687,0.7,137.29,137.26,8.80994492]
[1765507049361,0.7,137.29,137.26,9.49994492]
[1765507050360,7.98388062,137.29,137.26,9.49994492]
[1765507051478,0.7,137.28,137.26,9.49994492]
[1765507052355,0.7,137.28,137.26,8.80994492]
[1765507052777,7.98388062,137.29,137.26,9.49994492]
[1765507053774,0.7,137.28,137.26,9.49994492]
[1765507054183,0.7,137.29,137.26,9.49994492]
[1765507056383,7.98391071,137.29,137.26,9.49994492]
[1765507056762,0.7,137.28,137.26,9.49994492]
[1765507057670,0.7,137.28,137.25,8.80994492]
[1765507058181,7.28491294,137.27,137.25,8.80994492]
[1765507058560,7.98491294,137.27,137.25,8.80994492]
[1765507059262,7.98491294,137.27,137.25,9.49994492]
[1765507059678,7.98491294,137.27,137.25,8.80994492]
[1765507061667,7.98491294,137.27,137.25,9.49994492]
[1765507062685,7.28491294,137.27,137.25,9.49994492]
[1765507062885,7.28454036,137.28,137.26,0.72]
[1765507065002,7.28454036,137.28,137.26,5.1784359]
[1765507065176,7.28454036,137.28,137.26,0.72]
[1765507067295,7.99454036,137.28,137.26,0.72]
[1765507067519,7.2838517,137.29,137.26,0.72]
[1765507068199,7.9938517,137.29,137.26,0.72]
[1765507069319,0.71,137.29,137.26,0.72]
[1765507071119,7.28438228,137.28,137.26,0.72]
[1765507072897,0.71,137.28,137.26,0.72]
[1765507073645,25.49199951,137.3,137.26,0.72]
[1765507073817,7.28438228,137.28,137.26,0.72]
[1765507075322,7.28340711,137.3,137.27,8.80994492]
[1765507075521,7.28340711,137.3,137.27,13.26838082]
[1765507075725,7.28340711,137.3,137.28,0.72]
[1765507078322,15.26282788,137.31,137.29,8.80994492]
[1765507078524,7.28282788,137.31,137.29,8.80994492]
[1765507078711,7.99282788,137.31,137.29,8.80994492]
[1765507078911,7.28282788,137.31,137.29,9.52994492]
[1765507079304,7.99282788,137.31,137.29,9.52994492]
[1765507080426,109.98209752,137.33,137.31,8.80994492]
[1765507080618,7.99137901,137.34,137.31,13.98838082]
[1765507080830,7.99137901,137.34,137.31,9.52994492]
[1765507081324,0.71,137.33,137.31,8.80994492]
[1765507081700,7.28226041,137.32,137.31,8.80994492]
[1765507082912,7.28226041,137.32,137.29,13.26838082]
[1765507083113,7.28226041,137.32,137.31,8.80994492]
[1765507086006,7.28173013,137.33,137.31,8.80994492]
[1765507086206,0.71,137.32,137.28,8.80994492]
[1765507086418,5.1684359,137.32,137.27,8.7]
[1765507086710,5.1684359,137.32,137.28,0.72]
[1765507086911,0.71,137.31,137.28,0.72]
[1765507087735,4.4584359,137.3,137.27,8.80994492]
[1765507087907,0.71,137.29,137.26,8.80994492]
[1765507088115,7.99422388,137.29,137.26,9.52994492]
[1765507088734,0.71,137.28,137.25,8.80994492]
[1765507089114,0.71,137.28,137.24,8.80994492]
[1765507089423,0.71,137.28,137.24,9.52994492]
[1765507090133,7.99475684,137.28,137.24,9.52994492]
[1765507090916,0.71,137.27,137.24,9.52994492]
[1765507093141,7.99526233,137.27,137.24,9.52994492]
[1765507093729,0.68,137.26,137.24,8.80994492]
[1765507094139,0.68,137.26,137.24,9.48994492]
[1765507095212,7.96575059,137.26,137.24,8.80994492]
[1765507095450,7.96575059,137.26,137.23,9.00994492]
[1765507095622,0.72,137.25,137.23,0.2]
[1765507096726,7.28650539,137.24,137.23,0.2]
[1765507097252,8.00650539,137.24,137.23,0.2]
[1765507106834,12.46494129,137.24,137.23,0.2]
[1765507107148,8.7,137.25,137.23,0.88]
[1765507107344,8.7,137.25,137.23,0.2]
[1765507108446,15.98621335,137.25,137.23,0.2]
[1765507110753,15.26621335,137.25,137.23,0.88]
[1765507111456,0.72,137.25,137.23,0.88]
[1765507111939,0.72,137.25,137.23,0.2]
[1765507113049,8.0061109,137.25,137.23,0.88]
[1765507113561,8.0061109,137.25,137.23,0.2]
[1765507115443,7.28544368,137.26,137.24,0.68]
[1765507117038,0.72,137.25,137.23,0.2]
[1765507117752,8.7,137.25,137.23,0.2]
[1765507119138,7.28650539,137.24,137.23,0.2]
[1765507119550,8.00650539,137.24,137.23,0.2]
[1765507120141,12.46494129,137.24,137.23,0.09701622]
[1765507120447,8.00650539,137.24,137.23,0.09701622]
[1765507120961,12.46494129,137.24,137.23,0.09701622]
[1765507121337,8.00650539,137.24,137.23,0.09701622]
[1765507122261,12.46494129,137.24,137.23,0.09701622]
[1765507125767,8.00650539,137.24,137.23,0.09701622]
[1765507128270,0.68,137.23,137.2,0.2]
[1765507128476,2.85593645,137.21,137.2,1e-08]
[1765507128766,21.0270912,137.22,137.2,1e-08]